[Event "15th Paleochora Open 2022"]
[Site "Paleochora"]
[Date "2022.07.21"]
[Round "6.12"]
[White "Georgiou, Kostantinos"]
[Black "Yankelevich, Lev"]
[Result "1/2-1/2"]
[ECO "A48"]
[WhiteElo "2259"]
[BlackElo "2496"]
[Annotator "TA"]
[PlyCount "50"]
[EventDate "2022.07.17"]
[EventType "swiss"]
[EventCountry "GRE"]
[SourceTitle "playchess.com"]
[Source "ChessBase"]
[SourceQuality "1"]
[TimeControl "40/5400+30:900+30"]

{[%evp 16,50,0,-3,7,-1,-1,0,0,0,10,6,0,7,6,18,18,-34,0,0,-6,-38,-21,-24,-12,-10,0,0,0,0,0,0,30,21,34,54,47]} 1. d4 Nf6 2. Nf3 g6 3. Bg5 Bg7 4. Nbd2 O-O 5. c3 d6 6. e4 h6 7. Bh4 c5 $1 {7...c5 is better than 7...Nbd7.} 8. dxc5 dxc5 9. Be2 Nc6 {A48: 1 d4 Nf6 2 Nf3 g6: Torre, London and Colle Systems.} 10. O-O Nh5 11. Nc4 Nf4 {The position is equal.} 12. Qc2 {[#]} Be6 $146 ({Predecessor:} 12... Bg4 13. Ne3 Bxf3 14. Bxf3 Ne5 15. Be2 Nxe2+ 16. Qxe2 Qd3 17. Qxd3 Nxd3 18. Rab1 g5 {1-0 (59) Kamsky,G (2658)-Ragger,M (2647) Germany 2022}) 13. Rfd1 Qc8 14. Ne3 Nd4 15. cxd4 cxd4 16. Qd2 (16. Nxd4 $11 Bxd4 17. Qd2) 16... Nxe2+ 17. Qxe2 dxe3 18. Qxe3 Rd8 (18... Bxb2 {is interesting.} 19. Rab1 Qc2 20. Qxh6 Rfd8) 19. Nd4 Qd7 {[%cal Rg7d4]} 20. e5 {[%cal Be4e5,Be5e6][%mdl 32]} Bd5 21. h3 b6 22. Rd2 Qb7 23. f4 {Inhibits g5.} Re8 24. f5 Be4 25. e6 {[#] Hoping for exf7+.} gxf5 {Weighted Error Value: White=0.09 (flawless) /Black=0.08 (flawless)} 1/2-1/2

[Event "15th Paleochora Open 2022"]
[Site "Paleochora"]
[Date "2022.07.21"]
[Round "6.13"]
[White "Kouskoutis, Georgios-Alexandros"]
[Black "Leniart, Arkadiusz"]
[Result "0-1"]
[ECO "A20"]
[WhiteElo "2292"]
[BlackElo "2473"]
[Annotator "TA"]
[PlyCount "92"]
[EventDate "2022.07.17"]
[EventType "swiss"]
[EventCountry "GRE"]
[SourceTitle "playchess.com"]
[Source "ChessBase"]
[SourceQuality "1"]
[TimeControl "40/5400+30:900+30"]

{[%evp 9,92,4,0,0,2,0,0,0,0,0,0,-11,0,-15,-13,-18,-13,-20,-4,-32,-41,-42,-40,-41,-35,-38,-20,-52,-10,-20,-26,-35,0,0,0,0,56,0,1,0,0,0,0,0,25,0,0,0,0,0,0,0,0,0,0,-46,-42,-74,-77,-72,-71,-99,-110,-618,-625,-519,-208,-158,-145,-156,-147,-152,-123,-677,-218,-218,-218,-235,-230,-6311,-6311,-29989,-29990,-29990,-29991]} 1. c4 e5 2. g3 c6 3. Bg2 d5 4. cxd5 cxd5 5. d4 e4 6. a3 {A20: English Opening: 1...e5.} Nc6 7. Nc3 Be7 8. f3 {[#] The position is equal.} exf3 $146 ({Predecessor:} 8... f5 9. Nh3 Nf6 10. Bg5 Be6 11. Nf4 Bf7 12. e3 O-O 13. O-O Na5 14. Rf2 Nc4 {0-1 (29) Heinbuch,D (2360)-Zagorskis,D (2485) Berlin 1997}) 9. Nxf3 Nf6 10. Bg5 O-O 11. Bxf6 Bxf6 12. O-O Re8 13. Qd3 a6 14. b4 g6 15. e3 Bf5 16. Qd2 Rc8 17. Kh1 Bg7 18. Ng1 Qg5 {[%cal Og7d4]} (18... a5 $5 {[%cal Ra5b4]}) 19. Rf4 Be6 20. Re1 h5 21. Nh3 Qd8 22. Rff1 g5 {Against Nf4} (22... Bxh3 $11 23. Bxh3 Rc7) 23. Nf2 ({White should play} 23. e4 $14) 23... b6 $11 24. Rc1 Ne7 25. e4 dxe4 26. Nfxe4 Nd5 27. Nxd5 {Pair of Knights!} (27. Nxg5 {is interesting.} Bh6 28. Nxd5 Rxc1 29. Qxc1 Bxd5 30. Rf5) 27... Rxc1 28. Ndf6+ Bxf6 29. Nxf6+ Qxf6 30. Qxc1 Qd8 31. Qc6 Re7 {[%cal Be8e7,Be7d7,Bd7d4][%mdl 32]} 32. Qf3 (32. b5 $11) 32... Rd7 $15 33. Qxh5 Rxd4 34. h3 Kg7 $1 {Prevents Qh6+.} 35. Kh2 Rd2 {[%cal Od2g2]} 36. Qf3 {[%mdl 8192] [#]} (36. Re1 $17) 36... Qd4 $1 $19 {White must now prevent ...Bd5. Active counter play!} 37. Rg1 Bd5 ({Stronger than} 37... g4 38. hxg4 Bxg4 39. Qf4 $17) (37... Qe5 $142 38. Qh5 Bd5) 38. Qf5 f6 {And now ...Qb2 would win.} 39. Qd7+ Kg6 {The board is on fire.} 40. Qe8+ Bf7 41. Qa8 {[%mdl 8192]} (41. Qe7 $17) 41... Qe3 $2 (41... Qe5 {Strongly threatening ...Bd5.} 42. h4 gxh4) 42. Kh1 Kg7 ({Not} 42... Qxa3 43. Qh8 Qe3 44. Rf1) 43. Qf3 {[#]} Qe5 $40 {[%mdl 128] Threatens to win with ...Bd5. Black wants a kill.} 44. g4 $2 (44. Qb7) 44... Bd5 45. Qf5 {[#]} Qg3 $1 {[%cal Rg3h3]} 46. Qd7+ Kh6 {Weighted Error Value: White=0.59/Black=0.36} 0-1

[Event "15th Paleochora Open 2022"]
[Site "Paleochora"]
[Date "2022.07.21"]
[Round "6.14"]
[White "Nevednichy, Vladislav"]
[Black "Simonetto, Andrea"]
[Result "1-0"]
[ECO "B22"]
[WhiteElo "2473"]
[BlackElo "2273"]
[Annotator "TA"]
[PlyCount "103"]
[EventDate "2022.07.17"]
[EventType "swiss"]
[EventCountry "GRE"]
[SourceTitle "playchess.com"]
[Source "ChessBase"]
[SourceQuality "1"]
[TimeControl "40/5400+30:900+30"]

{[%evp 21,103,24,23,4,27,24,45,36,39,35,48,50,65,56,92,105,106,88,144,128,147,126,145,117,135,125,127,137,141,143,191,162,272,249,322,314,454,462,558,279,846,247,248,243,247,70,256,250,254,253,272,280,279,279,307,303,334,331,329,327,331,324,339,310,435,423,482,449,520,444,414,392,782,782,782,774,765,757,754,724,754,749,686,503]} 1. e4 c6 2. c4 d5 3. cxd5 cxd5 4. exd5 Nf6 5. Nc3 Nxd5 6. Nf3 Nc6 7. Bb5 Nb6 8. d4 e6 9. O-O Be7 10. Ne5 Bd7 11. Nxd7 Qxd7 12. Qg4 {B22: Sicilian: 2 c3.} Bf6 13. Rd1 {[%cal Od4d5]} h5 14. Qf3 {White is slightly better.} Nd5 15. Ne4 a6 {[#]} 16. Ba4 $146 ({Predecessor:} 16. Bxc6 bxc6 17. Bf4 Be7 18. Rac1 Rc8 19. b3 h4 20. h3 Nxf4 21. Qxf4 {½-½ (62) Solomaha,A (2376)-Ostrovskiy,A (2077) Kiev 2003}) 16... b5 17. Bb3 Rd8 18. Be3 (18. Bxd5 $6 Qxd5 19. Qxf6 (19. Nxf6+ gxf6 20. Qxd5 Rxd5 $11) 19... gxf6 $11) 18... Nce7 19. a4 b4 (19... Nf5 $142) 20. a5 {Hoping for Ba4.} Kf8 21. Nc5 Qa7 22. Qe2 $36 {[%mdl 2048] White has strong initiative.} Rd6 23. Rac1 h4 24. h3 Qa8 25. Bc2 {White is more active.} Nc6 (25... Nf5 $16 26. Qf3 g6) 26. Be4 $18 (26. Nxa6 Nxd4 27. Bxd4 Bxd4) 26... Nxa5 (26... Kg8 $142 27. Nxa6 (27. Qxa6 Qxa6 28. Nxa6 Nxa5 $18) 27... Nce7) 27. Ra1 Bd8 28. Qf3 Kg8 (28... Qc8 {was necessary.} 29. Rdc1 (29. Bf4 Nxf4 30. Qxf4 Bc7 $16) 29... g5) 29. Bf4 {[%mdl 64] Deflection} Rc6 30. Re1 Rc8 $2 {[#]} (30... Nf6 31. Bxc6 Qxc6 32. Qxc6 Nxc6 33. Rxa6 Nxd4) 31. Bxd5 $2 (31. Nxe6 $1 {[%mdl 512]} fxe6 32. Qg4 (32. Bd6 Bb6 $16)) 31... Qxd5 32. Qxd5 exd5 33. Re8+ ({Less strong is} 33. Nxa6 Nb3 $11) 33... Kh7 {[#] Black cannot hold the game after this.} 34. Rxd8 {[%mdl 576] Remove Defender} Rhxd8 35. Rxa5 Re8 36. Kf1 {Inhibits Re1+.} ({Much less strong is} 36. Rxa6 $6 Ra8 37. Kf1 Rxa6 38. Nxa6 b3 $18) 36... Kg6 37. Rxa6+ Kf5 38. Bd2 Ra8 39. Rxa8 ({Don't take} 39. Bxb4 f6 40. Ra3 g5 $18) 39... Rxa8 40. Bxb4 Ra1+ 41. Ke2 g5 42. Be1 Rb1 (42... Ra2 $142 43. Nd3 Ke6) 43. b4 {[%cal Bb2b4,Bb4b5,Bb5b6][%mdl 32]} Kg6 44. f3 Kf5 45. Na6 Ke6 46. b5 Kd6 $2 (46... Kd7 47. Nb4 Kc8) 47. Bb4+ {White is clearly winning.} Kd7 48. b6 Rb2+ 49. Kf1 {And now b7 would win.} Rb1+ {[#]} 50. Kf2 $1 {Black must now prevent b7.} Rb2+ 51. Kg1 {Strongly threatening b7.} Rb1+ {[#]} 52. Kh2 $1 {Weighted Error Value: White=0.35/Black=0.37} 1-0

[Event "15th Paleochora Open 2022"]
[Site "Paleochora"]
[Date "2022.07.21"]
[Round "6.15"]
[White "Spyropoulos, Nikolaos"]
[Black "Eden, James"]
[Result "1-0"]
[ECO "B63"]
[WhiteElo "2446"]
[BlackElo "2258"]
[Annotator "TA"]
[PlyCount "51"]
[EventDate "2022.07.17"]
[EventType "swiss"]
[EventCountry "GRE"]
[SourceTitle "playchess.com"]
[Source "ChessBase"]
[SourceQuality "1"]
[TimeControl "40/5400+30:900+30"]

{[%evp 17,51,37,37,22,33,28,50,43,93,102,106,95,97,74,114,104,102,139,229,221,339,338,530,431,435,439,748,658,29991,29992,29992,29993,29993,29994,29994,29995]} 1. e4 c5 2. Nf3 d6 3. d4 cxd4 4. Nxd4 Nf6 5. Nc3 Nc6 6. Bg5 e6 7. Qd3 Be7 8. O-O-O Nxd4 9. Qxd4 O-O 10. h4 {B63: Sicilian: Richter-Rauzer: 7...Be7 and unusual Black 7th moves.} h6 {...e5 is the strong threat.} 11. e5 dxe5 12. Qxe5 {White is slightly better.} Nd7 (12... Qb6 $1 $14) 13. Bxe7 $16 Qxe7 14. Qc7 Qd8 {[#]} 15. Qd6 $146 {aiming for Bb5.} ({Predecessor:} 15. Qf4 Qa5 16. Rh3 Nf6 17. Re3 Bd7 18. g4 Bc6 19. g5 hxg5 20. hxg5 Nd5 21. Nxd5 Bxd5 {1-0 (46) Kokkila,T (2327)-Nieminen,K (2180) Finland 2011}) 15... Qa5 16. Rh3 Nf6 17. Rg3 Bd7 (17... Ne8 $16 18. Qd4 Qc7) 18. b4 $1 $18 Qh5 {[#]} (18... Qa3+ $142 19. Kb1 Ba4) 19. Be2 $1 Qxh4 (19... Qf5 {keeps fighting.} 20. Bd3 (20. Rf3 Qg6 $16) 20... Qh5) 20. Rd4 Qh1+ 21. Kb2 {Black must now prevent Qe5.} (21. Rd1 Qh4 22. Qe5 Rfc8 23. Rxd7 Qxg3 24. Qxg3 Nxd7 $18) 21... Rac8 (21... Rfc8 $142 22. Qe5 (22. Qe7 Rxc3 23. Bd3 Rxd3 $16) 22... Rxc3) 22. Qe5 {Active counter play!} ({Less strong is} 22. Qe7 Rxc3 23. Rxc3 Re8 $14) 22... Rxc3 23. Rxg7+ {[%mdl 64] Decoy. White mates.} Kxg7 {[#]} 24. Rg4+ $1 Kh7 25. Bd3+ ({Not} 25. Qxf6 Rxc2+ 26. Kxc2 Rc8+ 27. Bc4 (27. Kd3 $2 Qb1+ 28. Ke3 Qc1+ 29. Ke4 Bc6+ 30. Kd3 Bb5+ 31. Ke4 Qc2+ 32. Kf4 Qf5+ 33. Qxf5+ exf5 $19) 27... Rxc4+ 28. Rxc4 Qh5 $16) 25... Rxd3 26. Qxf6 {White took control after the opening.  Weighted Error Value: White=0.05 (flawless) /Black=0.81} 1-0

[Event "15th Paleochora Open 2022"]
[Site "Paleochora"]
[Date "2022.07.21"]
[Round "6.16"]
[White "Barbot, Pierre"]
[Black "Vingris, Mikelis"]
[Result "1-0"]
[ECO "A43"]
[WhiteElo "2438"]
[BlackElo "1811"]
[Annotator "TA"]
[PlyCount "95"]
[EventDate "2022.07.17"]
[EventType "swiss"]
[EventCountry "GRE"]
[SourceTitle "playchess.com"]
[Source "ChessBase"]
[SourceQuality "1"]
[TimeControl "40/5400+30:900+30"]

{[%evp 10,95,45,41,65,57,89,82,87,93,87,84,85,85,100,73,81,41,75,71,80,50,59,37,35,0,0,-16,0,-11,0,0,6,8,19,19,41,19,19,6,5,4,43,43,43,29,98,29,238,238,238,231,221,195,221,110,337,331,331,286,363,331,365,347,795,791,788,758,751,758,735,690,867,870,29967,29965,29968,29952,29975,29977,29976,29977,29983,29984,29984,29985,29985,29986]} 1. d4 Nf6 2. Nf3 c5 3. d5 b5 4. Bg5 d6 5. Bxf6 exf6 6. e4 Qa5+ {A43: Schmid Benoni.} 7. Nbd2 Bd7 8. a4 bxa4 {White is better.} 9. c3 Be7 10. Nc4 {[%mdl 1024] White has strong compensation.} Qc7 11. Bd3 {White is more active.} O-O {[#]} 12. Bc2 $146 ({Predecessor:} 12. O-O a6 13. Ne3 Qb7 14. Qd2 g6 15. Bc2 Re8 16. Bxa4 Bxa4 17. Rxa4 Nd7 18. Rfa1 {1-0 (40) Naumkin,I (2486)-Sbraccia,G (2017) Porto San Giorgio 2011}) 12... Bb5 13. Nfd2 Nd7 14. Bxa4 a6 15. O-O Ne5 16. Bxb5 axb5 17. Nxe5 fxe5 18. Qb3 Ra5 19. Ra3 Rfa8 20. Rfa1 R8a6 21. g3 g6 22. Nb1 Kf8 23. Rxa5 Rxa5 24. Rxa5 Qxa5 $14 {[%mdl 4096] Endgame KQB-KQN} 25. Na3 Qa4 26. Qxa4 bxa4 {KB-KN} 27. Nc4 Ke8 {[#]} (27... Bg5 $1 $11 {keeps the balance.}) 28. Nb6 (28. Kf1 $1 $16) 28... Kd8 $2 {White now steadily converts the win.} (28... Bd8 $1 $11 {and Black has nothing to worry.} 29. Nxa4 c4) 29. Nxa4 $18 Kc7 30. b4 cxb4 31. cxb4 Bg5 {[#]} 32. Kf1 (32. Nb2 $1 $18 {and the rest is easy.}) 32... f5 $2 (32... Bd2 $16) 33. exf5 gxf5 34. Ke2 Kb7 35. f3 h5 36. Kd3 h4 $2 (36... Bf6 37. Nc3 Bg7) 37. gxh4 Bxh4 38. Kc4 Bf6 39. Nc3 Kb6 40. Ne2 e4 41. f4 {Black must now prevent Ng3.} Bg7 42. h4 {[%cal Bh2h4,Bh4h5,Bh5h6][%mdl 32] White mates.} Bh6 43. h5 Kb7 44. Kd4 Kb6 45. Ke3 Kb5 46. Nd4+ Kxb4 47. Nxf5 Bf8 48. h6 {Weighted Error Value: White=0.13 (very precise) /Black=0.54} 1-0

[Event "15th Paleochora Open 2022"]
[Site "Paleochora"]
[Date "2022.07.21"]
[Round "6.17"]
[White "Milonakis, Georgios"]
[Black "Kalogeris, Ioannis"]
[Result "1/2-1/2"]
[ECO "A09"]
[WhiteElo "2256"]
[BlackElo "2406"]
[Annotator "TA"]
[PlyCount "89"]
[EventDate "2022.07.17"]
[EventType "swiss"]
[EventCountry "GRE"]
[SourceTitle "playchess.com"]
[Source "ChessBase"]
[SourceQuality "1"]
[TimeControl "40/5400+30:900+30"]

{[%evp 13,89,30,22,24,26,20,18,6,18,5,14,10,21,8,20,16,45,14,15,15,23,28,51,43,41,35,108,52,71,41,43,55,54,64,64,66,163,167,161,29,104,-39,-38,-27,91,91,79,81,69,0,0,0,0,0,0,0,0,0,0,0,0,0,96,0,0,0,0,0,0,0,0,0,0,0,0,0,0,0]} 1. Nf3 d5 2. c4 d4 3. g3 Nc6 {[%cal Bb8c6,Bc6b4,Bb4a6][%mdl 32]} 4. Bg2 e5 5. d3 Nf6 6. O-O Be7 7. b4 Nxb4 8. Nxe5 {A09: Réti Opening: 1 Nf3 d5 2 c4.} O-O 9. Nd2 Re8 10. a3 Na6 11. Nb3 {[#]} Rb8 $146 ({Predecessor:} 11... c5 12. e3 dxe3 13. fxe3 Bd6 14. Nf3 Bd7 15. Ng5 Qb6 16. Rb1 h6 17. Nd2 Qd8 18. Nge4 Nxe4 19. Nxe4 Bc6 20. Qh5 {½-½ (20) Sulayev,D (2134)-Roseneck,J (2400) Germany 2019}) 12. e3 dxe3 (12... Bc5 {is more complex.} 13. Bb2 dxe3 14. Nxc5 exf2+ 15. Rxf2 Nxc5 16. Nxf7 Qxd3 17. Nh6+ gxh6 18. Rxf6 Qxd1+ 19. Rxd1 Be6) 13. Bxe3 c5 14. f4 Qc7 15. Nd2 Bd6 16. Ne4 Nxe4 17. Bxe4 g6 (17... Bxe5 18. fxe5 Qxe5 19. Bf4 (19. Qf3 Be6 $16) 19... Qd4+ 20. Kg2 $16) 18. Qf3 Be6 19. Rab1 {[%cal Rb1b7]} b6 (19... f6 $1 $14 20. Ng4 (20. Bxb7 fxe5 21. fxe5 Bxe5 $11) (20. Rxb7 Rxb7 21. Bxb7 fxe5 $14) 20... Bxg4 21. Qxg4 f5 22. Bd5+ Kh8) 20. Bc6 (20. Nc6 $16) 20... Rf8 21. Bb5 $36 {[%mdl 2048] White is more active.} (21. Bd2 {looks sharper.} Bxe5 22. fxe5 Qxe5 23. Rbe1) 21... Bc8 22. Ng4 {[%cal Be5g4,Bg4f6,Bf6d5][%mdl 32]} Bb7 23. Nf6+ Kg7 24. Nd5 Qc8 (24... Qd8 $14) 25. Bxa6 $18 Bxa6 26. f5 (26. Bc1 $18) 26... Bb7 {[#]} (26... f6 $1 $11) 27. f6+ ({Don't play} 27. fxg6 $6 fxg6 28. Qe2 Bxd5 29. Qb2+ (29. cxd5 Qe8 $11) 29... Kg8 $11) (27. Rbe1 $1 $16) 27... Kg8 $15 28. Bf4 Bxf4 (28... Bxd5 $11 {keeps the balance.} 29. cxd5 (29. Qxd5 Bxf4 30. Rxf4 Qe6 $15) 29... Rd8) 29. Qxf4 $16 {Intending Qh6 and mate.} Qh3 {Prevents Qh6.} 30. Rbe1 b5 31. Re7 (31. Rf2 $14) 31... bxc4 $1 $11 32. dxc4 {[%cal Oe7f7] Dancing on a razor blade.} Bxd5 33. cxd5 Rb2 {[%csl Gb2][%cal Rh3h2] [#]} 34. Rf2 {Active counter play!} Rb1+ 35. Rf1 Rb2 {[%csl Gb2][%cal Rh3h2]} 36. Rf2 Rb1+ 37. Rf1 Rxf1+ (37... Rb2 $5 38. Rf2 $11) 38. Qxf1 {[%mdl 4096] Endgame KQR-KQR} Qg4 {The position is equal.} 39. Qd3 {d6 is the strong threat.} c4 40. Qe4 Qg5 41. Qe5 Qc1+ (41... Qd2 $2 42. Re8 Qc1+ 43. Kf2 Qc2+ 44. Kf3 Qd1+ 45. Kf2 Qd2+ 46. Kf3 Qd3+ 47. Kf4 Qf1+ 48. Kg5 h6+ 49. Kxh6 (49. Kh4 g5+ 50. Kg4 Qd1+ 51. Kh3 Qf1+ 52. Kg4 Qd1+ 53. Kh3 Qf1+ 54. Kg4 $11) 49... Qh3+ 50. Kg5 $18) 42. Kg2 Qd2+ 43. Kg1 {Hoping for Re8.} Qc1+ 44. Kg2 {Strongly threatening Re8.} Qd2+ 45. Kg1 {Weighted Error Value: White=0.20 (precise) /Black=0.14 (very precise)} 1/2-1/2

[Event "15th Paleochora Open 2022"]
[Site "Paleochora"]
[Date "2022.07.21"]
[Round "6.18"]
[White "Demchenko, Svitlana"]
[Black "Pap, Misa"]
[Result "0-1"]
[ECO "A47"]
[WhiteElo "2122"]
[BlackElo "2375"]
[Annotator "TA"]
[PlyCount "146"]
[EventDate "2022.07.17"]
[EventType "swiss"]
[EventCountry "GRE"]
[SourceTitle "playchess.com"]
[Source "ChessBase"]
[SourceQuality "1"]
[TimeControl "40/5400+30:900+30"]

{[%evp 14,146,35,16,31,20,29,24,22,10,22,11,33,0,4,8,0,0,34,0,26,-6,0,-17,-16,-7,-14,-16,0,0,14,0,25,0,5,32,54,45,69,0,20,35,47,26,19,31,52,52,47,14,61,50,64,16,13,10,17,8,14,12,12,14,14,14,96,114,107,10,29,0,34,0,0,0,0,0,0,0,17,-15,-8,-8,-8,-65,0,0,0,0,0,-8,-8,-8,-8,-8,-8,-8,-8,-8,-8,-8,-8,-8,-8,-52,-56,-64,-67,-83,-83,-109,-109,-258,-262,-307,-318,-584,-584,-464,-271,-1125,-1179,-1449,-1332,-1044,-1106,-1208,-1122,-4598,-4602,-29967,-29969,-29972,-29973,-29970,-29970]} 1. d4 Nf6 2. Nf3 e6 3. Bf4 c5 4. e3 cxd4 5. exd4 b6 6. Bd3 Bb7 7. Nbd2 Be7 8. c3 d6 {A47: 1 d4 Nf6 2 Nf3 b6: Torre, London and Colle Systems.} 9. Qe2 Nbd7 {[%cal Bb8d7,Bd7f8,Bf8h7,Bh7f6][%mdl 32]} 10. h3 a6 {White has an edge.} 11. a4 O-O {[%cal Oe6e5]} 12. O-O Re8 {[%cal Oe6e5]} 13. Rfe1 Nf8 14. Ne4 Nd5 15. Bh2 {[#]} h6 $146 ({Predecessor:} 15... Qd7 16. h4 f5 17. Ned2 h6 18. h5 Nf6 19. Nc4 Qc6 20. a5 b5 21. Nb6 Rad8 {1-0 (42) Van Mechelen,J (2247)-Ward,C (2441) Ghent 2017}) 16. Qd2 Rc8 17. h4 Nh7 18. h5 Ndf6 19. Nxf6+ Nxf6 20. Qe2 Ra8 21. Nd2 Bf8 22. Ne4 Nd5 23. Qd2 Rc8 24. c4 Nf6 25. Nxf6+ Qxf6 26. Bf1 (26. a5 $1 $14) 26... Qh4 27. a5 d5 28. cxd5 b5 29. dxe6 fxe6 30. Re5 Rcd8 31. Qe2 Bd6 (31... Bd5 $11) 32. Bg3 $14 Qf6 {[#]} 33. Re3 (33. Qg4 $1 $14 {is more appropriate.}) 33... Bxg3 $11 (33... Qxd4 $2 34. Rd1 Qxd1 35. Qxd1 $18) 34. Rxg3 Qxd4 35. Rc1 Re7 36. Rd3 Qxd3 37. Qxd3 Rxd3 38. Bxd3 {[%mdl 4096] Endgame With the idea Bg6. KRB-KRB} Rd7 (38... Kf7 $1 $11) 39. Bg6 $1 $16 Kf8 40. Kh2 (40. f3 $1 $16) 40... Ke7 $11 41. Kg3 Kd6 42. f3 Ke5 43. Rc5+ Kd4 44. Rc1 Bd5 45. Rc8 Re7 46. Be4 Bxe4 47. fxe4 {KR-KR} e5 48. Rc6 (48. Ra8 $11) 48... Ra7 (48... Kxe4 $15 49. Rxa6 Kd3) 49. Kf3 Rf7+ 50. Ke2 $1 Rf6 51. Rc7 g6 (51... Kxe4 52. Rxg7 Kd5 53. Ke3 $14) 52. Rb7 $1 {aiming for Rb6.} gxh5 (52... Kxe4 53. Rb6 Kf5 54. g4+ Kg5 55. hxg6 Kxg6 56. Ke3) 53. Rb6 Rf4 54. Rxa6 Rxe4+ 55. Kf2 Rf4+ 56. Ke2 Rg4 57. Kf2 Kd5 {Threatening ...Rb4.} 58. Rb6 Rb4 59. a6 Rxb2+ 60. Ke3 Rb3+ ({Much worse is} 60... Rxg2 $6 61. Rxb5+ Kd6 62. Ra5 Rg3+ 63. Ke4 Rg4+ 64. Ke3 Rg3+ 65. Ke4 Rg4+ 66. Ke3 $11) 61. Ke2 Ke4 {Strongly threatening ...Rb2+.} 62. Rxh6 {Loses the game.} (62. Kf2 $17 {is a better defense.}) 62... Rb2+ $19 63. Kd1 {[#]} Ra2 $1 ({Inferior is} 63... Rxg2 64. Rxh5 Ra2 65. Rh6 $17) 64. Rb6 $2 (64. Kc1 {was forced.} Kd4 65. Kb1) 64... Kd3 {[%cal Ra2a1]} 65. Rd6+ Kc4 (65... Kc3 $142 {Hoping for ...b4.} 66. Rc6+ Kd3 67. Rd6+ Ke3) 66. Re6 $2 {[#]} (66. Kc1) 66... e4 $1 67. Rc6+ Kd3 68. Rd6+ Ke3 69. Rb6 h4 70. Rxb5 Rxa6 {( -> ...Ra1+)} 71. Rh5 Kf2 {Black mates.} 72. Rxh4 Rd6+ 73. Kc2 e3 {Weighted Error Value: White=0.16 (very precise) /Black=0.11 (very precise)} 0-1

[Event "15th Paleochora Open 2022"]
[Site "Paleochora"]
[Date "2022.07.22"]
[Round "7.1"]
[White "Ali Marandi, Cemil Can"]
[Black "Hamitevici, Vladimir"]
[Result "1-0"]
[ECO "D02"]
[WhiteElo "2561"]
[BlackElo "2473"]
[Annotator "TA"]
[PlyCount "53"]
[EventDate "2022.07.17"]
[EventType "swiss"]
[EventCountry "GRE"]
[SourceTitle "playchess.com"]
[Source "ChessBase"]
[SourceQuality "1"]
[TimeControl "40/5400+30:900+30"]

{[%evp 9,52,4,0,6,10,-2,0,0,0,-10,1,0,0,-10,0,-29,12,18,67,66,52,60,79,53,62,61,260,257,258,265,238,241,203,197,355,130,743,708,972,947,945,925,29996,29997,29999]} 1. d4 Nf6 2. Nf3 e6 3. Bf4 d5 4. e3 Bd6 5. c3 O-O 6. Nbd2 {D02: 1 d4 d5 2 Nf3 sidelines, including 2...Nf6 3 g3 and 2...Nf6 3 Bf4.} c5 7. Bg3 Qc7 8. dxc5 {The position is equal.} Qxc5 9. Bd3 Nbd7 10. Qe2 Bxg3 11. hxg3 {[%cal Og3g4]} h6 12. O-O-O {[#]} Re8 $146 ({Predecessor:} 12... Rb8 13. Kb1 b5 14. e4 b4 15. c4 dxe4 16. Nxe4 Nxe4 17. Bxe4 Nf6 18. Bd3 Bb7 {0-1 (45) Abdyjapar,A (2394)-Rasulov,V (2478) Chess.com INT 2020}) 13. e4 dxe4 (13... e5 $11) 14. Nxe4 $14 Nxe4 15. Bxe4 Nf6 {[#]} 16. Ne5 $1 {[%cal Og3g4] Black must now prevent g4! White is more active.} Nxe4 (16... Qxe5 $2 {[#]} 17. Bh7+ $1 {[%mdl 512]} Nxh7 18. Qxe5 $18) 17. Qxe4 {And now g4 would win.} Qe7 $2 (17... Qxf2 $14 18. g4 f5) 18. f4 $18 {Strongly threatening g4.} Rd8 19. Rxd8+ Qxd8 20. Rd1 {[%cal Rd1d8] Inhibits Qd5.} Qc7 21. Qc4 Qb6 (21... Qe7 22. Rd4 g6) 22. Qa4 $2 (22. g4 $18 {is more deadly.}) 22... Kf8 $2 {[%mdl 8192] This costs Black the game.} (22... Qe3+ $16 23. Rd2 (23. Kb1 b5 $14) 23... b5 24. Qxb5 Qe1+ 25. Kc2 Qe4+ 26. Qd3 Bb7) 23. Qa3+ Ke8 24. Nc4 {[%cal Be5c4,Bc4d6,Bd6f5][%mdl 32]} Qa6 25. Nd6+ Kf8 26. Nf5+ Qxa3 27. Rd8# {Weighted Error Value: White=0.14 (very precise) /Black=0.61} 1-0